bitfinex-derivatives/quotes_SOLF0:USTF0_20251026
["timestamp","ask_amount","ask_price","bid_price","bid_amount"]
[1761441790618,1.50387852,193.6,193.59,4.66084443]
[1761441790922,1.50387852,193.6,193.56,2.78]
[1761441811233,5.43895492,193.6,193.56,2.78]
[1761441811536,1.50387852,193.6,193.56,2.78]
[1761441812332,5.44361537,193.6,193.56,2.78]
[1761441812539,1.50387852,193.6,193.56,2.78]
[1761441813135,5.44436583,193.6,193.56,2.78]
[1761441813338,1.50387852,193.6,193.56,2.78]
[1761441813934,5.44521928,193.6,193.56,2.78]
[1761441814134,3.94226484,193.59,193.56,2.78]
[1761441814739,1.50387852,193.6,193.56,2.78]
[1761441815430,5.44616457,193.6,193.56,2.78]
[1761441815643,1.50387852,193.6,193.56,2.78]
[1761441817646,3.94491998,193.59,193.56,2.78]
[1761441818038,1.50387852,193.6,193.56,2.78]
[1761441818235,3.94578978,193.59,193.56,2.78]
[1761441819143,1.50387852,193.6,193.56,2.78]
[1761441819446,3.94678077,193.59,193.56,2.78]
[1761441819648,1.50387852,193.6,193.56,2.78]
[1761441819837,3.94678227,193.59,193.56,2.78]
[1761441820041,1.50387852,193.6,193.56,2.78]
[1761441820239,3.94794752,193.59,193.56,2.78]
[1761441820547,1.50387852,193.6,193.56,2.78]
[1761441820739,3.94794752,193.59,193.56,2.78]
[1761441820938,1.50387852,193.6,193.56,2.78]
[1761441821140,3.94794752,193.59,193.56,2.78]
[1761441821348,1.50387852,193.6,193.56,2.78]
[1761441821647,3.94936802,193.59,193.56,2.78]
[1761441821837,1.50387852,193.6,193.56,2.78]
[1761441822040,3.94936802,193.59,193.56,2.78]
[1761441822241,3.94936802,193.58,193.56,2.78]
[1761441822549,1.50387852,193.6,193.56,2.78]
[1761441822745,3.95045793,193.59,193.56,2.78]
[1761441822943,3.95045793,193.58,193.56,2.78]
[1761441823139,2.34882193,193.6,193.56,2.78]
[1761441823339,3.95185089,193.59,193.56,2.78]
[1761441823539,3.95185089,193.58,193.56,2.78]
[1761441823746,2.34882193,193.6,193.56,2.78]
[1761441823940,3.95185089,193.59,193.56,2.78]
[1761441824144,3.95185089,193.58,193.56,2.78]
[1761441824347,2.34882193,193.6,193.56,2.78]
[1761441824649,3.95225739,193.59,193.56,2.78]
[1761441824840,3.95225739,193.58,193.56,2.78]
[1761441825048,2.34882193,193.6,193.56,2.78]
[1761441825246,3.95230929,193.59,193.56,2.78]
[1761441825446,3.95230929,193.58,193.56,2.78]
[1761441825649,2.34882193,193.6,193.56,2.78]
[1761441825948,3.95230779,193.59,193.56,2.78]
[1761441826148,3.95230779,193.58,193.56,2.78]
[1761441826351,2.34882193,193.6,193.56,2.78]
[1761441826651,3.95231213,193.59,193.56,2.78]
[1761441826850,3.95231213,193.58,193.56,2.78]
[1761441827052,2.34882193,193.6,193.56,2.78]
[1761441827253,3.95230289,193.59,193.56,2.78]
[1761441827452,3.95230289,193.58,193.56,2.78]
[1761441827654,2.34882193,193.6,193.56,2.78]
[1761441827852,3.95230378,193.59,193.56,2.78]
[1761441828154,3.95230378,193.58,193.56,2.78]
[1761441828354,3.95230378,193.57,193.56,2.78]
[1761441829151,2.34882193,193.6,193.56,2.78]
[1761441829350,3.95223317,193.59,193.56,2.78]
[1761441829655,3.95223317,193.58,193.56,2.78]
[1761441829854,3.95223317,193.57,193.56,2.78]
[1761441831160,6.3010551,193.57,193.5,2.78]
[1761441831359,2.34882193,193.54,193.5,2.78]
[1761441831558,3.95223317,193.53,193.47,2.78]
[1761441831759,3.95223317,193.52,193.47,2.78]
[1761441831953,3.95223317,193.51,193.47,2.78]
[1761441832158,6.78325823,193.54,193.47,2.78]
[1761441832159,2.34882193,193.54,193.47,2.78]
[1761441832354,3.94728381,193.53,193.47,2.78]
[1761441832558,3.94728381,193.52,193.47,2.78]
[1761441832864,3.94728381,193.51,193.47,2.78]
[1761441833059,6.7821942,193.54,193.47,2.78]
[1761441833258,3.94495494,193.53,193.47,2.78]
[1761441833458,3.94495494,193.52,193.47,2.78]
[1761441833659,3.94495494,193.51,193.47,2.78]
[1761441833860,3.94495494,193.53,193.47,2.78]
[1761441834060,3.94495494,193.52,193.47,2.78]
[1761441834261,3.94495494,193.51,193.47,2.78]
[1761441834461,3.94495494,193.53,193.47,2.78]
[1761441834662,3.94495494,193.52,193.47,2.78]
[1761441834957,3.94495494,193.51,193.47,2.78]
[1761441835165,2.34882193,193.54,193.47,2.78]
[1761441835166,3.94495494,193.53,193.47,2.78]
[1761441835363,3.94495494,193.52,193.47,2.78]
[1761441835564,2.34882193,193.54,193.4,2.78]
[1761441835565,2.34882193,193.5,193.4,2.78]
[1761441836370,6.29105885,193.5,193.4,2.78]
[1761441836576,2.34882193,193.5,193.4,2.78]
[1761441836775,3.94081981,193.49,193.4,2.78]
[1761441837082,2.34882193,193.5,193.4,2.78]
[1761441837477,6.28964174,193.5,193.4,2.78]
[1761441837675,3.94081981,193.49,193.4,2.78]
[1761441837976,3.94081981,193.52,193.4,2.78]
[1761441838177,4.42359852,193.53,193.4,2.78]
[1761441838178,3.94081981,193.51,193.4,2.78]
[1761441838374,3.94081981,193.52,193.4,2.78]
[1761441838575,3.94081981,193.51,193.4,2.78]
[1761441838883,3.94081981,193.52,193.4,2.78]
[1761441839076,3.94081981,193.51,193.4,2.78]
[1761441839283,3.94081981,193.52,193.4,2.78]
[1761441840583,3.94081981,193.53,193.4,2.78]
[1761441840784,3.94081981,193.52,193.4,2.78]
[1761441840983,2.34882193,193.5,193.4,2.78]
[1761441841185,6.28964174,193.5,193.4,2.78]
[1761441841383,4.45326954,193.53,193.4,2.78]
[1761441841583,3.95584818,193.52,193.4,2.78]
[1761441841788,3.95584818,193.53,193.4,2.78]
[1761441841980,3.95584818,193.52,193.4,2.78]
[1761441842281,3.95584818,193.53,193.4,2.78]
[1761441844977,2.34882193,193.54,193.4,2.78]
[1761441846186,2.34882193,193.54,193.42,2.66]
[1761441846983,3.951185,193.57,193.43,2.66]
[1761441847391,6.30000693,193.58,193.43,2.66]
[1761441847784,3.951185,193.57,193.43,2.66]
[1761441847992,2.34882193,193.58,193.43,2.66]
[1761441848585,6.30000693,193.58,193.43,2.66]
[1761441848799,3.951185,193.58,193.45,2.8]
[1761441849289,8.3977915,193.61,193.45,2.8]
[1761441849484,3.951185,193.6,193.45,2.8]
[1761441849995,3.951185,193.6,193.46,2.8]
[1761441850195,3.951185,193.61,193.46,2.8]
[1761441850386,3.951185,193.6,193.46,2.8]
[1761441853394,2.34882193,193.58,193.46,2.8]
[1761441857090,6.30000693,193.6,193.46,2.8]
[1761441857293,3.95460173,193.59,193.46,2.8]
[1761441857698,3.95460328,193.59,193.46,2.8]
[1761441857893,2.34882193,193.6,193.46,2.8]
[1761441860598,2.34882193,193.56,193.46,2.8]
[1761441864200,2.34882193,193.52,193.46,2.8]
[1761441868610,2.34882193,193.52,193.31,209.04882193]
[1761441868611,2.34882193,193.48,193.41,2.8]
[1761441875214,2.34882193,193.5,193.41,2.8]
[1761441875612,6.30395319,193.5,193.41,2.8]
[1761441875817,2.34882193,193.5,193.41,2.8]
[1761441876611,6.30468758,193.5,193.41,2.8]
[1761441876812,3.95586565,193.49,193.41,2.8]
[1761441877114,2.34882193,193.5,193.41,2.8]
[1761441877516,6.30468758,193.5,193.41,2.8]
[1761441877708,3.95586565,193.49,193.41,2.8]
[1761441877909,2.34882193,193.5,193.41,2.8]
[1761441878314,6.30468758,193.5,193.41,2.8]
[1761441878518,3.95586565,193.49,193.41,2.8]
[1761441879110,2.34882193,193.5,193.41,2.8]
[1761441879314,6.30468758,193.5,193.41,2.8]
[1761441879510,3.95586565,193.49,193.41,2.8]
[1761441880317,3.95586565,193.51,193.41,2.8]
[1761441880615,6.30468758,193.5,193.41,2.8]
[1761441880810,3.95586565,193.49,193.41,2.8]
[1761441881407,2.34882193,193.5,193.41,2.8]
[1761441881617,6.30468758,193.5,193.41,2.8]
[1761441881816,3.95586565,193.49,193.41,2.8]
[1761441882116,2.34882193,193.5,193.41,2.8]
[1761441882506,6.30468758,193.5,193.41,2.8]
[1761441882711,3.95586565,193.49,193.41,2.8]
[1761441883110,2.34882193,193.5,193.41,2.8]
[1761441883310,6.30468758,193.5,193.41,2.8]
[1761441883510,3.95586565,193.49,193.41,2.8]
[1761441883917,2.34882193,193.5,193.41,2.8]
[1761441884426,6.30468758,193.5,193.41,2.8]
[1761441884719,1.50504533,193.47,193.41,2.8]
[1761441890125,5.45922923,193.52,193.42,1.50504533]
[1761441890422,3.9541839,193.51,193.43,2.79]
[1761441890624,3.9541839,193.5,193.43,2.79]
[1761441890818,3.9541839,193.51,193.43,2.79]
[1761441891016,3.9541839,193.5,193.43,2.79]
[1761441891216,3.9541839,193.51,193.43,2.79]
[1761441891415,3.9541839,193.5,193.43,2.79]
[1761441891619,3.9541839,193.51,193.43,2.79]
[1761441891916,3.9541839,193.5,193.43,2.79]
[1761441892118,3.9541839,193.51,193.43,2.79]
[1761441892320,3.9541839,193.5,193.43,2.79]
[1761441892520,3.9541839,193.51,193.43,2.79]
[1761441892823,3.9541839,193.5,193.43,2.79]
[1761441893023,1.50504533,193.48,193.43,2.79]
[1761441900731,5.45892908,193.48,193.43,2.79]
[1761441900933,3.95388375,193.47,193.43,2.79]
[1761441901129,1.50504533,193.48,193.43,2.79]
[1761441901736,5.46152217,193.48,193.43,2.79]
[1761441901939,3.95645913,193.47,193.43,2.79]
[1761441902432,1.50504533,193.48,193.43,2.79]
[1761441902830,5.46150446,193.48,193.43,2.79]
[1761441903035,3.95645913,193.47,193.43,2.79]
[1761441904138,3.95645913,193.46,193.43,2.79]
[1761441904437,3.95645913,193.47,193.43,2.79]
[1761441904637,3.95645913,193.46,193.43,2.79]
[1761441904836,3.95645913,193.47,193.43,2.79]
[1761441905036,3.95645913,193.46,193.43,2.79]
[1761441905237,3.95645913,193.47,193.43,2.79]
[1761441905537,3.95645913,193.46,193.43,2.79]
[1761441905736,3.95645913,193.47,193.43,2.79]
[1761441905936,3.95645913,193.46,193.43,2.79]
[1761441906136,1.50504533,193.48,193.43,2.79]
[1761441906337,3.96331373,193.47,193.43,2.79]
[1761441906535,3.96331373,193.46,193.43,2.79]
[1761441906735,1.50504533,193.48,193.43,2.79]
[1761441906934,3.96326919,193.47,193.43,2.79]
[1761441907239,3.96326919,193.46,193.43,2.79]
[1761441907441,1.50504533,193.48,193.43,2.79]
[1761441907644,3.96440498,193.47,193.43,2.79]
[1761441907836,1.50504533,193.45,193.43,2.79]
[1761441908140,1.50504533,193.45,193.37,2.61]
[1761441911944,3.96818298,193.44,193.37,2.61]
[1761441912137,1.50504533,193.45,193.37,2.61]
[1761441912443,3.96899736,193.44,193.37,2.61]
[1761441912644,1.50504533,193.45,193.37,2.61]
[1761441912838,3.96887064,193.44,193.37,2.61]
[1761441913040,1.50504533,193.45,193.37,2.61]
[1761441913337,3.96887064,193.44,193.37,2.61]
[1761441913537,1.50504533,193.45,193.37,2.61]
[1761441913742,3.96967195,193.44,193.37,2.61]
[1761441913941,4.45819784,193.47,193.37,2.61]
[1761441914141,3.96985768,193.46,193.37,2.61]
[1761441914346,3.96985768,193.45,193.37,2.61]
[1761441914648,3.96985768,193.44,193.37,2.61]
[1761441914852,5.96324317,193.48,193.38,2.88]
[1761441915151,3.96999047,193.47,193.4,2.88]
[1761441915348,3.96999047,193.46,193.4,2.88]
[1761441915535,3.96999047,193.45,193.4,2.88]
[1761441915733,4.46362943,193.49,193.41,2.88]
[1761441915945,3.9703035,193.48,193.41,2.88]
[1761441916146,3.9703035,193.47,193.41,2.88]
[1761441916347,3.9703035,193.46,193.41,2.88]
[1761441916546,3.9703035,193.45,193.41,2.88]
[1761441916748,4.46362943,193.48,193.41,2.88]
[1761441916943,3.97075839,193.47,193.41,2.88]
[1761441917147,3.97075839,193.46,193.41,2.88]
[1761441917346,3.97075839,193.45,193.41,2.88]
[1761441917650,5.96867476,193.48,193.41,2.88]
[1761441917835,3.97160791,193.47,193.41,2.88]
[1761441918040,3.97160791,193.46,193.41,2.88]
[1761441918242,3.97160791,193.45,193.41,2.88]
[1761441918443,5.96867476,193.48,193.41,2.88]
[1761441918648,3.97164267,193.47,193.41,2.88]
[1761441918850,3.97164267,193.46,193.41,2.88]
[1761441919144,3.97164267,193.45,193.41,2.88]
[1761441919339,4.46362943,193.49,193.41,2.88]
[1761441919542,3.97170587,193.48,193.41,2.88]
[1761441919841,3.97170587,193.47,193.41,2.88]
[1761441920042,3.97170587,193.46,193.41,2.88]
[1761441920245,3.97170587,193.45,193.41,2.88]
[1761441920444,4.46362943,193.49,193.41,2.88]
[1761441920647,3.97177994,193.48,193.41,2.88]
[1761441920848,3.97177994,193.47,193.41,2.88]
[1761441921148,3.97177994,193.46,193.41,2.88]
[1761441921346,3.97177994,193.45,193.41,2.88]
[1761441921548,4.46362943,193.49,193.41,2.88]
[1761441921737,3.97188542,193.48,193.41,2.88]
[1761441922043,3.97188542,193.47,193.41,2.88]
[1761441922241,3.97188542,193.46,193.41,2.88]
[1761441922437,3.97188542,193.45,193.41,2.88]
[1761441922653,4.46362943,193.49,193.41,2.88]
[1761441922848,3.97178149,193.48,193.41,2.88]
[1761441923144,3.97178149,193.47,193.41,2.88]
[1761441923350,3.97178149,193.46,193.41,2.88]
[1761441923647,6.29929419,193.51,193.41,2.88]
[1761441923844,3.97230272,193.5,193.41,2.88]
[1761441924046,3.97230272,193.49,193.41,2.88]
[1761441924353,3.97230272,193.48,193.41,2.88]
[1761441924545,3.97230272,193.47,193.41,2.88]
[1761441924741,5.97030535,193.51,193.41,2.88]
[1761441924946,3.97202302,193.5,193.41,2.88]
[1761441925244,3.97202302,193.49,193.41,2.88]
[1761441925446,3.97202302,193.48,193.41,2.88]
[1761441925645,3.97202302,193.47,193.41,2.88]
[1761441925846,5.97030535,193.51,193.41,2.88]
[1761441926053,3.97070322,193.5,193.41,2.88]
[1761441926249,3.97070322,193.49,193.41,2.88]
[1761441926447,3.97070322,193.48,193.41,2.88]
[1761441926647,3.97070322,193.47,193.41,2.88]
[1761441926947,10.76455421,193.51,193.41,2.88]
[1761441927247,8.43564002,193.5,193.41,2.88]
[1761441927445,3.97038,193.49,193.41,2.88]
[1761441927754,3.97038,193.48,193.41,2.88]
[1761441927948,3.97038,193.47,193.41,2.88]
[1761441928146,4.46526002,193.5,193.41,2.88]
[1761441928340,3.97012375,193.49,193.41,2.88]
[1761441928539,3.97012375,193.48,193.41,2.88]
[1761441928744,3.97012375,193.47,193.41,2.88]
[1761441928943,4.46526002,193.5,193.41,2.88]
[1761441929146,3.97000218,193.49,193.41,2.88]
[1761441929347,3.97000218,193.48,193.41,2.88]
[1761441929543,3.97000218,193.47,193.41,2.88]
[1761441929751,5.97030535,193.5,193.41,2.88]
[1761441929944,3.96979259,193.49,193.41,2.88]
[1761441930156,3.96979259,193.48,193.42,4.38504533]
[1761441930351,3.96979259,193.47,193.43,2.88]
[1761441930552,3.96979259,193.46,193.43,2.88]
[1761441930754,6.29929419,193.51,193.43,2.88]
[1761441930954,13.24381242,193.5,193.43,2.88]
[1761441931155,8.44956356,193.49,193.43,2.88]
[1761441931351,3.9695667,193.48,193.43,2.88]
[1761441931556,3.9695667,193.47,193.43,2.88]
[1761441931751,3.9695667,193.46,193.43,2.88]
[1761441931951,4.47999686,193.49,193.4,4.38504533]
[1761441932158,8.46128758,193.48,193.4,2.88]
[1761441932357,5.48633605,193.47,193.4,2.88]
[1761441932559,1.50504533,193.44,193.4,2.88]
[1761441936163,1.50504533,193.44,193.36,2.88]
[1761441936363,3.98000891,193.43,193.36,2.88]
[1761441936663,3.98000891,193.42,193.36,2.88]
[1761441936862,1.50504533,193.44,193.36,2.88]
[1761441937161,3.97992283,193.43,193.36,2.88]
[1761441937356,3.97992283,193.42,193.36,2.88]
[1761441937564,1.50504533,193.44,193.36,2.88]
[1761441937756,3.97947807,193.43,193.36,2.88]
[1761441938065,1.50504533,193.44,193.36,2.88]
[1761441938268,3.97942405,193.43,193.36,2.88]
[1761441938565,1.50504533,193.44,193.36,2.88]
[1761441938753,3.97925293,193.43,193.36,2.88]
[1761441938959,1.50504533,193.44,193.36,2.88]
[1761441939154,3.97937265,193.43,193.36,2.88]
[1761441939466,1.50504533,193.44,193.36,2.88]
[1761441939672,3.97942976,193.43,193.36,2.88]
[1761441939968,1.50504533,193.44,193.36,2.88]
[1761441940268,3.97928855,193.43,193.36,2.88]
[1761441940458,1.50504533,193.44,193.36,2.88]
[1761441940763,3.97893405,193.43,193.36,2.88]
[1761441941065,1.50504533,193.44,193.36,2.88]
[1761441941262,3.97888209,193.43,193.36,2.88]
[1761441941463,1.50504533,193.44,193.36,2.88]
[1761441941668,3.97863358,193.43,193.36,2.88]
[1761441941859,1.50504533,193.44,193.36,2.88]
[1761441942060,3.97863358,193.43,193.36,2.88]
[1761441942367,1.50504533,193.44,193.36,2.88]
[1761441944866,4.79424886,193.49,193.36,2.88]
[1761441944867,1.50504533,193.47,193.37,2.7]
[1761441945055,3.97867912,193.46,193.37,2.7]
[1761441945261,3.97867912,193.45,193.37,2.7]
[1761441945464,3.97867912,193.44,193.37,2.7]
[1761441945671,1.50504533,193.47,193.37,2.7]
[1761441945865,3.97867448,193.46,193.37,2.7]
[1761441946071,3.97867448,193.45,193.37,2.7]
[1761441946372,3.97867448,193.44,193.37,2.7]
[1761441946572,1.50504533,193.47,193.37,2.7]
[1761441946873,3.97903651,193.46,193.37,2.7]
[1761441947060,3.97903651,193.45,193.37,2.7]
[1761441947264,3.97903651,193.44,193.37,2.7]
[1761441947464,4.47763454,193.48,193.37,2.7]
[1761441947664,3.97901256,193.47,193.37,2.7]
[1761441947865,3.97901256,193.46,193.37,2.7]
[1761441948065,3.97901256,193.45,193.37,2.7]
[1761441948273,3.97901256,193.44,193.37,2.7]
[1761441948470,4.47763454,193.48,193.37,2.7]
[1761441948773,3.97958691,193.47,193.37,2.7]
[1761441949073,3.97958691,193.46,193.37,2.7]
[1761441949274,3.97958691,193.45,193.37,2.7]
[1761441949573,3.97958691,193.44,193.37,2.7]
[1761441949775,4.47763454,193.48,193.37,2.7]
[1761441949976,3.98001444,193.47,193.37,2.7]
[1761441950276,3.98001444,193.46,193.37,2.7]
[1761441950470,3.98001444,193.45,193.37,2.7]
[1761441950668,3.98001444,193.44,193.37,2.7]
[1761441950871,4.47763454,193.48,193.37,2.7]
[1761441951072,3.9797393,193.47,193.37,2.7]
[1761441951271,3.9797393,193.46,193.37,2.7]
[1761441951473,3.9797393,193.45,193.37,2.7]
[1761441951672,3.9797393,193.44,193.37,2.7]
[1761441951874,4.47763454,193.48,193.37,2.7]
[1761441952175,3.97974359,193.47,193.37,2.7]
[1761441952371,3.97974359,193.46,193.37,2.7]
[1761441952672,3.97974359,193.45,193.37,2.7]
[1761441952874,3.97974359,193.44,193.37,2.7]
[1761441953075,4.47763454,193.48,193.37,2.7]
[1761441953276,3.97971464,193.47,193.37,2.7]
[1761441953476,3.97971464,193.46,193.37,2.7]
[1761441953676,3.97971464,193.45,193.37,2.7]
[1761441953879,4.47763454,193.48,193.37,2.7]
[1761441954080,3.97992751,193.47,193.37,2.7]
[1761441954281,3.97992751,193.46,193.37,2.7]
[1761441954482,3.97992751,193.45,193.37,2.7]
[1761441954676,4.47763454,193.48,193.37,2.7]
[1761441954879,3.97991956,193.47,193.37,2.7]
[1761441955077,3.97991956,193.46,193.37,2.7]
[1761441955278,3.97991956,193.45,193.37,2.7]
[1761441955483,4.47763454,193.48,193.37,2.7]
[1761441955693,3.98202532,193.47,193.37,2.7]
[1761441955882,3.98202532,193.46,193.37,2.7]
[1761441956084,3.98202532,193.45,193.37,2.7]
[1761441956284,4.47763454,193.48,193.37,2.7]
[1761441956485,3.98208682,193.47,193.37,2.7]
[1761441956684,3.98208682,193.46,193.37,2.7]
[1761441956984,3.98208682,193.45,193.37,2.7]
[1761441957179,4.47763454,193.48,193.37,2.7]
[1761441957381,3.98209113,193.47,193.37,2.7]
[1761441957578,3.98209113,193.46,193.37,2.7]
[1761441957884,3.98209113,193.45,193.37,2.7]
[1761441958085,4.79424886,193.5,193.38,2.7]
[1761441958286,3.98270001,193.49,193.38,2.7]
[1761441958486,3.98270001,193.48,193.38,2.7]
[1761441958690,3.98270001,193.47,193.38,2.7]
[1761441958884,4.48166804,193.49,193.38,2.7]
[1761441958885,3.98270001,193.46,193.38,2.7]
[1761441959085,4.48166804,193.49,193.38,2.7]
[1761441959286,3.98282472,193.48,193.38,2.7]
[1761441959585,3.98282472,193.47,193.38,2.7]
[1761441959784,3.98282472,193.46,193.38,2.7]
[1761441959978,4.48166804,193.49,193.38,2.7]
[1761441960181,3.98308338,193.48,193.38,2.7]
[1761441960389,3.98308338,193.47,193.38,2.7]
[1761441960589,3.98308338,193.46,193.38,2.7]
[1761441960790,4.48166804,193.49,193.38,2.7]
[1761441960979,3.98295934,193.48,193.38,2.7]
[1761441961184,3.98295934,193.47,193.38,2.7]
[1761441961490,3.98295934,193.46,193.38,2.7]
[1761441961686,3.98295934,193.45,193.38,2.7]
[1761441961887,4.48166804,193.49,193.38,2.7]
[1761441962091,3.9833878,193.48,193.38,2.7]
[1761441962391,3.9833878,193.47,193.38,2.7]
[1761441962592,3.9833878,193.46,193.38,2.7]
[1761441962894,3.9833878,193.45,193.38,2.7]
[1761441963093,4.48166804,193.49,193.38,2.7]
[1761441963289,3.98408482,193.48,193.36,2.78]
[1761441963489,3.98408482,193.47,193.36,2.78]
[1761441963694,4.79424886,193.52,193.36,2.78]
[1761441963894,8.48589941,193.51,193.36,2.78]
[1761441964087,3.98441597,193.5,193.36,2.78]
[1761441964282,3.98441597,193.49,193.36,2.78]
[1761441964486,3.98441597,193.48,193.36,2.78]
[1761441964686,3.98441597,193.47,193.36,2.78]
[1761441964895,4.50148344,193.51,193.36,2.78]
[1761441965091,3.98424418,193.5,193.41,2.78]
[1761441965290,3.98424418,193.49,193.41,2.78]
[1761441965491,3.98424418,193.48,193.41,2.78]
[1761441965793,3.98424418,193.47,193.41,2.78]
[1761441965993,4.50148344,193.51,193.41,2.78]
[1761441966194,3.98403797,193.5,193.41,2.78]
[1761441966389,3.98403797,193.49,193.41,2.78]
[1761441966589,3.98403797,193.48,193.41,2.78]
[1761441966892,3.98403797,193.47,193.41,2.78]
[1761441967092,4.50148344,193.51,193.41,2.78]
[1761441967294,3.98382027,193.5,193.41,2.78]
[1761441967484,3.98382027,193.49,193.41,2.78]
[1761441967686,3.98382027,193.48,193.41,2.78]
[1761441967887,3.98382027,193.47,193.41,2.78]
[1761441968088,4.50148344,193.51,193.41,2.78]
[1761441968384,3.98373586,193.5,193.41,2.78]
[1761441968587,3.98373586,193.49,193.41,2.78]
[1761441968794,3.98373586,193.48,193.41,2.78]
[1761441968996,3.98373586,193.47,193.41,2.78]
[1761441969198,4.50148344,193.51,193.41,2.78]
[1761441969495,3.98341176,193.5,193.41,2.78]
[1761441969695,3.98341176,193.49,193.41,2.78]
[1761441969893,3.98341176,193.48,193.41,2.78]
[1761441970190,3.98341176,193.47,193.42,2.81]
[1761441970393,4.50148344,193.51,193.42,2.81]
[1761441970592,3.983694,193.5,193.42,2.81]
[1761441970789,3.983694,193.49,193.42,2.81]
[1761441970991,3.983694,193.48,193.42,2.81]
[1761441971189,3.983694,193.47,193.42,2.81]
[1761441971393,4.50148344,193.51,193.42,2.81]
[1761441971594,3.98402102,193.5,193.42,2.81]
[1761441971795,3.98402102,193.49,193.42,2.81]
[1761441971997,3.98402102,193.48,193.42,2.81]
[1761441972297,3.98402102,193.47,193.42,2.81]
[1761441972598,4.50148344,193.51,193.42,2.81]
[1761441972795,3.98373451,193.5,193.42,2.81]
[1761441973099,3.98373451,193.49,193.42,2.81]
[1761441973396,3.98373451,193.48,193.42,2.81]
[1761441973596,3.98373451,193.47,193.42,2.81]
[1761441973798,4.50148344,193.51,193.42,2.81]
[1761441973998,3.98373263,193.5,193.42,2.81]
[1761441974300,3.98373263,193.49,193.42,2.81]
[1761441974495,3.98373263,193.48,193.42,2.81]
[1761441974696,3.98373263,193.47,193.42,2.81]
[1761441974895,4.50148344,193.51,193.42,2.81]
[1761441975092,3.98387348,193.5,193.42,2.81]
[1761441975293,3.98387348,193.49,193.42,2.81]
[1761441975598,3.98387348,193.48,193.42,2.81]
[1761441975793,3.98387348,193.47,193.42,2.81]
[1761441976100,4.50148344,193.51,193.42,2.81]
[1761441976304,3.98376967,193.5,193.42,2.81]
[1761441976598,3.98376967,193.49,193.42,2.81]
[1761441976799,3.98376967,193.48,193.42,2.81]
[1761441977001,3.98376967,193.47,193.42,2.81]
[1761441977193,4.50148344,193.51,193.42,2.81]
[1761441977398,3.98354542,193.5,193.42,2.81]
[1761441977705,3.98354542,193.49,193.42,2.81]
[1761441977899,3.98354542,193.48,193.42,2.81]
[1761441978099,3.98354542,193.47,193.42,2.81]
[1761441978398,4.50148344,193.51,193.42,2.81]
[1761441978594,3.98336,193.5,193.42,2.81]
[1761441978800,3.98336,193.49,193.42,2.81]
[1761441978998,3.98336,193.48,193.42,2.81]
[1761441979203,4.50148344,193.51,193.42,2.81]
[1761441979204,3.98336,193.47,193.42,2.81]
[1761441979402,4.50148344,193.51,193.42,2.81]
[1761441979598,3.9831877,193.5,193.42,2.81]
[1761441979805,3.9831877,193.49,193.42,2.81]
[1761441980104,3.9831877,193.48,193.42,2.81]
[1761441980306,3.9831877,193.47,193.42,2.81]
[1761441980605,4.50148344,193.51,193.42,2.81]
[1761441980807,3.98302107,193.5,193.42,2.81]
[1761441981106,3.98302107,193.49,193.42,2.81]
[1761441981307,3.98302107,193.48,193.42,2.81]
[1761441981506,3.98302107,193.47,193.42,2.81]
[1761441981707,4.50148344,193.51,193.42,2.81]
[1761441982008,3.98330904,193.5,193.42,2.81]
[1761441982207,3.98330904,193.49,193.42,2.81]